bitfinex-derivatives/quotes_SOLF0:USTF0_20250518
["timestamp","ask_amount","ask_price","bid_price","bid_amount"]
[1747539087240,143.78,167.24,167.15,5.38899406]
[1747539087752,5.9803,167.16,167.15,5.38899406]
[1747539090143,5.9814,167.13,167.12,1.9667]
[1747539090841,5.9814,167.13,167.1,2.0141]
[1747539091040,5.9821,167.11,167.1,2.0141]
[1747539091948,143.46,167.14,167.1,5.72132215]
[1747539092145,71.94,167.13,167.1,5.72132215]
[1747539092650,5.9821,167.11,167.1,5.72132215]
[1747539094138,5.9829,167.09,167.07,1.9456]
[1747539095048,71.94,167.13,167.07,1.9456]
[1747539095645,71.94,167.13,167.08,5.56077]
[1747539096248,5.9831,167.09,167.08,5.56077]
[1747539098548,70.86,167.12,167.08,5.56077]
[1747539099650,5.9829,167.09,167.08,5.56077]
[1747539100051,70.86,167.12,167.07,1.9456]
[1747539100349,5.9838,167.07,167.05,2.0312]
[1747539101243,5.9839,167.06,167.05,2.0312]
[1747539102149,70.86,167.12,167.05,2.0312]
[1747539102955,5.9833,167.08,167.05,2.0312]
[1747539104352,5.9829,167.09,167.05,2.0312]
[1747539104650,142.26,167.13,167.05,2.0312]
[1747539105560,5.9832,167.08,167.05,2.0312]
[1747539107249,11.9574,167.21,167.05,2.0312]
[1747539107444,142.06,167.2,167.05,4.22275123]
[1747539107647,142.06,167.2,167.05,2.0312]
[1747539107846,142.06,167.2,167.05,4.22262525]
[1747539108049,5.9831,167.09,167.05,2.0312]
[1747539108552,5.9834,167.08,167.05,2.0312]
[1747539109751,5.9839,167.06,167.05,2.0312]
[1747539109951,142.04,167.14,167.05,5.55326583]
[1747539111150,5.9844,167.05,167.03,3.8688]
[1747539111345,142.04,167.14,167.03,3.8688]
[1747539112952,5.9846,167.04,167.03,3.8688]
[1747539114250,5.9846,167.04,167.03,9.41830005]
[1747539116162,5.9846,167.04,167.03,5.54950005]
[1747539116851,144.4246,167.04,167.03,5e-08]
[1747539117960,144.4246,167.04,166.98,3.973]
[1747539117961,5.9864,166.99,166.98,3.973]
[1747539119549,5.9876,166.96,166.94,69.22]
[1747539119952,138.44,167.04,166.94,69.22]
[1747539120251,5.9873,166.97,166.94,69.22]
[1747539120558,138.44,167.04,166.94,69.22]
[1747539120754,138.44,167.04,166.95,2.20186835]
[1747539121053,138.44,167.04,166.94,69.22]
[1747539121250,138.44,167.04,166.95,2.19878306]
[1747539121450,138.44,167.04,166.94,69.22]
[1747539121659,138.44,167.04,166.95,2.19883399]
[1747539121854,5.987,166.98,166.94,69.22]
[1747539122157,138.44,167.04,166.94,69.22]
[1747539122460,5.9878,166.96,166.94,69.22]
[1747539122758,68.98,167.0,166.93,1.9301]
[1747539123454,5.9876,166.96,166.93,1.9301]
[1747539123761,68.98,167.0,166.93,1.9301]
[1747539124060,5.9879,166.95,166.93,1.9301]
[1747539126856,5.9882,166.94,166.93,1.9301]
[1747539129562,5.9882,166.94,166.93,7.44527997]
[1747539130662,5.9879,166.95,166.93,7.44527997]
[1747539130862,69.26,166.99,166.93,7.44527997]
[1747539131158,5.987,166.98,166.94,5.51517997]
[1747539131363,69.26,166.99,166.94,5.51517997]
[1747539131862,5.9879,166.95,166.94,5.51517997]
[1747539132862,5.9889,166.92,166.9,69.24]
[1747539134066,5.9893,166.91,166.9,69.24]
[1747539134363,5.9893,166.91,166.89,68.12]
[1747539135365,5.989,166.92,166.89,74.11]
[1747539135865,67.98,166.96,166.9,5.52692116]
[1747539136465,5.9892,166.92,166.9,5.52692116]
[1747539136666,67.98,166.96,166.9,5.52692116]
[1747539137066,5.9892,166.92,166.9,5.52692116]
[1747539137863,5.9884,166.94,166.91,5.52692116]
[1747539138270,67.98,166.96,166.91,5.52692116]
[1747539139062,5.9889,166.93,166.91,5.52692116]
[1747539139271,5.9889,166.93,166.92,5.52692116]
[1747539142069,69.26,166.99,166.92,5.52692116]
[1747539142369,67.5,166.98,166.92,5.52692116]
[1747539142972,5.9881,166.95,166.93,5.52692116]
[1747539145072,67.42,166.99,166.94,11.51492116]
[1747539145273,67.42,166.99,166.94,5.52692116]
[1747539145572,69.28,167.0,166.94,5.52692116]
[1747539145871,136.66,167.0,166.94,5.52692116]
[1747539146070,5.9882,166.95,166.91,75.2691]
[1747539146972,5.9882,166.95,166.92,5.9889]
[1747539147272,5.9882,166.95,166.91,69.28]
[1747539147572,5.9882,166.95,166.92,5.9887]
[1747539147873,5.9876,166.96,166.91,69.28]
[1747539148075,136.66,167.0,166.92,11.53321774]
[1747539149370,136.66,167.0,166.93,5.54441774]
[1747539150075,5.9878,166.96,166.93,5.54441774]
[1747539150374,5.9878,166.96,166.93,11.53291774]
[1747539150873,5.9878,166.96,166.93,5.9885]
[1747539151076,5.9872,166.97,166.94,5.988]
[1747539151480,5.9872,166.97,166.91,69.28]
[1747539151777,5.9872,166.97,166.93,5.9884]
[1747539152176,5.9876,166.96,166.93,5.9884]
[1747539152377,517.42,167.04,166.94,2.2057676]
[1747539152567,5.9866,166.99,166.93,2.0383]
[1747539152765,67.28,167.03,166.94,69.18594254]
[1747539152976,67.28,167.03,166.95,69.48594254]
[1747539153179,67.28,167.03,166.96,2.20594254]
[1747539153380,5.9859,167.01,166.97,5.9868]
[1747539153579,5.9859,167.01,166.96,1.9457]
[1747539153776,5.9859,167.01,166.97,2.20723673]
[1747539153980,66.96,167.05,166.98,2.20723673]
[1747539154180,11.9659,167.09,166.98,5.54564599]
[1747539154374,66.9,167.06,166.98,5.54564599]
[1747539154575,66.9,167.06,166.99,2.20792835]
[1747539154775,66.9,167.06,166.98,5.54564599]
[1747539154976,5.9847,167.04,167.0,5.986]
[1747539155182,5.9847,167.04,166.98,5.54564599]
[1747539155381,5.9847,167.04,166.99,7.75445259]
[1747539155681,5.9847,167.04,167.0,2.2088066]
[1747539155878,5.9847,167.04,166.99,72.82564599]
[1747539156181,5.985,167.03,167.0,8.19440557]
[1747539156381,5.985,167.03,167.0,5.986]
[1747539156678,67.28,167.07,167.01,2.20865411]
[1747539156982,5.984,167.06,167.02,5.9851]
[1747539157383,5.9837,167.07,167.04,5.9846]
[1747539157571,134.06,167.11,167.04,5.9846]
[1747539157777,134.06,167.11,167.03,1.9903]
[1747539158083,5.9842,167.06,167.04,2.2082529]
[1747539158286,5.9842,167.06,167.04,5.54564599]
[1747539159183,5.9843,167.05,167.04,5.54564599]
[1747539159983,5.9849,167.04,167.02,66.78]
[1747539160781,5.985,167.03,167.02,66.78]
[1747539161083,134.06,167.11,167.02,68.98990783]
[1747539161382,5.9844,167.05,167.02,72.7653]
[1747539161585,5.9844,167.05,167.03,5.54857009]
[1747539161984,66.86,167.1,167.03,11.53347009]
[1747539161985,5.9841,167.06,167.03,11.53347009]
[1747539162589,134.08,167.11,167.03,11.53357009]
[1747539163079,5.9839,167.07,167.03,11.53357009]
[1747539163582,134.08,167.11,167.03,11.53357009]
[1747539163583,5.984,167.06,167.04,5.54857009]
[1747539163784,134.08,167.11,167.04,5.54857009]
[1747539164488,5.9842,167.06,167.04,5.54857009]
[1747539164883,134.08,167.11,167.04,5.54857009]
[1747539165489,66.58,167.1,167.02,66.78]
[1747539165790,66.58,167.1,166.99,67.28]
[1747539165989,66.58,167.1,167.0,2.20780819]
[1747539166180,66.58,167.1,166.99,73.2663]
[1747539166484,71.86300677,167.1,166.99,67.28]
[1747539166986,71.86300677,167.1,167.0,5.54063569]
[1747539167191,5.9857,167.01,167.0,5.54063569]
[1747539168586,66.84,167.03,166.96,5.54063569]
[1747539168587,5.9872,166.97,166.96,5.54063569]
[1747539170587,5.9875,166.96,166.95,67.26]
[1747539171288,66.84,167.03,166.95,69.46931617]
[1747539171488,66.84,167.03,166.96,2.20920796]
[1747539171689,66.84,167.03,166.95,67.26]
[1747539171882,133.88,167.04,166.96,2.2092241]
[1747539172093,5.9864,167.0,166.96,5.9873]
[1747539172485,5.9864,167.0,166.95,67.26]
[1747539172686,5.9858,167.01,166.97,5.9869]
[1747539173293,5.9858,167.01,166.98,5.53012748]
[1747539173687,5.9862,167.0,166.98,5.53012748]
[1747539174692,5.9864,166.99,166.98,5.53012748]
[1747539178690,5.9871,166.98,166.95,67.26]
[1747539178885,133.88,167.04,166.95,73.2476]
[1747539179087,133.88,167.04,166.95,67.26]
[1747539179297,5.9864,167.0,166.96,2.20961079]
[1747539179495,5.9864,167.0,166.96,5.9873]
[1747539180599,5.9864,167.0,166.97,5.53195953]
[1747539181099,5.9865,166.99,166.97,5.53195953]
[1747539181503,133.88,167.04,166.97,5.53195953]
[1747539181804,5.9873,166.97,166.95,67.26]
[1747539182190,133.88,167.04,166.95,67.26]
[1747539182502,5.9874,166.97,166.95,67.26]
[1747539183814,5.9874,166.97,166.96,5.5350137]
[1747539184216,5.9869,166.98,166.96,5.5350137]
[1747539184410,133.88,167.04,166.96,5.5350137]
[1747539184913,5.9869,166.98,166.96,5.5350137]
[1747539185714,5.9869,166.98,166.97,5.5350137]
[1747539186415,133.88,167.04,166.97,5.5350137]
[1747539186612,67.26,167.04,166.98,2.21212696]
[1747539186912,67.26,167.04,166.99,2.21212696]
[1747539187117,67.26,167.04,166.97,71.3950137]
[1747539187416,67.26,167.04,166.99,5.5350137]
[1747539187819,5.9856,167.02,166.99,5.5350137]
[1747539188119,67.26,167.04,166.99,5.5350137]
[1747539188415,67.26,167.04,167.0,2.21217025]
[1747539188615,67.26,167.04,166.99,5.5350137]
[1747539188815,5.985,167.03,167.01,5.5350137]
[1747539189019,131.94,167.08,167.01,5.5350137]
[1747539189205,66.22,167.08,167.01,5.5350137]
[1747539189409,66.22,167.08,167.01,11.5204137]
[1747539189410,5.9844,167.05,167.01,11.5204137]
[1747539189712,66.22,167.08,167.02,2.21244843]
[1747539189904,66.22,167.08,167.01,71.2150137]
[1747539190214,5.9837,167.07,167.02,7.74742432]
[1747539190414,66.2,167.12,167.03,2.21241062]
[1747539190715,66.2,167.12,167.06,5.9837]
[1747539191513,66.2,167.12,167.07,5.5350137]
[1747539191813,5.9827,167.1,167.07,5.5350137]
[1747539192616,66.2,167.12,167.07,5.5350137]
[1747539192809,66.2,167.16,167.08,2.2103954]
[1747539193010,5.28300677,167.19,167.08,5.5350137]
[1747539193214,5.9821,167.12,167.08,11.5180137]
[1747539193619,132.16,167.18,167.08,11.5180137]
[1747539193814,132.16,167.18,167.08,5.5350137]
[1747539194719,5.9828,167.1,167.08,5.5350137]
[1747539194921,65.92,167.14,167.08,5.5350137]
[1747539195114,65.92,167.14,167.07,66.2]
[1747539196026,5.9828,167.1,167.07,66.2]
[1747539196321,65.92,167.14,167.07,66.2]
[1747539196721,5.9825,167.1,167.07,66.2]
[1747539196923,65.92,167.14,167.07,66.2]
[1747539197219,5.9828,167.1,167.07,66.2]
[1747539197627,65.92,167.14,167.07,66.2]
[1747539197825,65.92,167.14,167.08,5.53219102]
[1747539198220,66.2,167.18,167.08,5.53219102]
[1747539198424,66.0,167.17,167.08,5.53219102]
[1747539199125,5.9824,167.11,167.08,5.53219102]
[1747539199528,66.0,167.17,167.08,5.53219102]
[1747539199732,5.9828,167.1,167.09,5.53219102]
[1747539201425,5.9832,167.08,167.07,66.2]
[1747539202730,5.9839,167.07,167.03,72.1649]
[1747539203025,65.82,167.13,167.04,2.20767022]
[1747539203230,65.82,167.13,167.03,66.18]
[1747539203414,5.9842,167.06,167.04,2.20776312]
[1747539203613,5.9842,167.06,167.03,66.18]
[1747539203913,5.9842,167.06,167.04,2.20774247]
[1747539204118,5.9842,167.06,167.03,66.18]
[1747539204314,5.9842,167.06,167.04,2.20775288]
[1747539204613,5.9842,167.06,167.03,66.18]
[1747539204825,5.9842,167.06,167.04,5.52716499]
[1747539205620,65.82,167.13,167.04,5.52716499]
[1747539205826,5.9843,167.05,167.04,5.52716499]
[1747539206829,5.9846,167.04,167.03,66.18]
[1747539207229,5.9846,167.04,166.99,71.5462]
[1747539207230,131.74,167.09,166.99,131.74]
[1747539207632,131.74,167.09,166.99,67.3776765]
[1747539207931,131.74,167.09,166.99,1.1976765]
[1747539208332,5.9861,167.0,166.99,1.1976765]
[1747539209230,5.9854,167.02,166.99,1.1976765]
[1747539209630,130.92,167.05,166.99,1.1976765]
[1747539209833,5.9861,167.0,166.99,1.1976765]
[1747539210634,5.9859,167.01,166.99,1.1976765]
[1747539211932,5.9861,167.0,166.99,1.1976765]
[1747539213333,5.9861,167.0,166.99,6.72574164]
[1747539214636,5.9869,166.98,166.96,69.3253]
[1747539214827,130.92,167.05,166.96,69.3253]
[1747539216442,5.9871,166.98,166.96,69.3253]
[1747539216736,5.9871,166.98,166.97,5.53062722]
[1747539217335,5.9871,166.98,166.96,69.3253]
[1747539217835,5.9872,166.97,166.96,65.46]
[1747539218032,130.92,167.05,166.93,130.54]
[1747539218235,130.92,167.05,166.93,65.48]
[1747539218433,5.28300677,167.04,166.93,65.48]
[1747539218933,5.28300677,167.04,166.91,68.8674]
[1747539219232,5.9885,166.94,166.91,68.8674]
[1747539220342,5.9886,166.93,166.92,5.52449061]
[1747539222838,5.9893,166.91,166.88,70.9501]
[1747539223444,5.9893,166.91,166.88,64.96]
[1747539224238,5.9893,166.91,166.89,5.51498277]
[1747539224431,65.08,166.98,166.89,5.51498277]
[1747539224636,5.9897,166.9,166.89,5.51498277]
[1747539226544,5.9909,166.87,166.84,67.3918]
[1747539227745,5.9909,166.87,166.85,5.507712]
[1747539228038,5.9911,166.86,166.85,5.507712]
[1747539230245,64.56,166.9,166.82,69.4453]
[1747539230246,5.9919,166.84,166.82,69.4453]
[1747539230945,64.56,166.9,166.82,3.9453]
[1747539231145,5.9922,166.83,166.82,3.9453]
[1747539231346,64.56,166.9,166.79,65.5]
[1747539231743,64.56,166.9,166.79,66.69911265]
[1747539232247,5.9933,166.8,166.79,66.69911265]
[1747539232650,129.94,166.86,166.79,66.69911265]
[1747539233450,5.9923,166.83,166.79,72.69251265]
[1747539233647,129.94,166.86,166.79,66.69911265]
[1747539233953,5.9929,166.81,166.79,66.69911265]
[1747539236555,129.94,166.86,166.79,1.19911265]
[1747539237143,5.9933,166.8,166.79,1.19911265]
[1747539237543,64.34,166.81,166.73,129.88]
[1747539237748,5.9953,166.75,166.73,129.88]
[1747539237951,5.9953,166.75,166.73,65.54]
[1747539238260,5.9954,166.74,166.73,65.54]
[1747539238761,64.34,166.81,166.73,65.54]
[1747539238963,5.9952,166.75,166.73,65.54]
[1747539240056,64.34,166.81,166.74,5.9951]
[1747539240361,64.34,166.81,166.73,65.54]
[1747539241963,5.9944,166.77,166.73,71.5354]
[1747539242150,64.34,166.81,166.73,65.54]
[1747539242354,64.34,166.81,166.72,3.9041]
[1747539242557,5.28300677,166.8,166.67,64.34]
[1747539242756,5.28300677,166.8,166.68,2.0526]
[1747539243159,5.9963,166.72,166.68,2.0526]
[1747539243665,5.9963,166.72,166.68,8.0501]
[1747539243858,64.26,166.75,166.68,2.0526]
[1747539244259,64.26,166.75,166.72,5.9961]
[1747539244562,64.24,166.77,166.69,64.24]
[1747539245063,64.36,166.78,166.69,64.24]
[1747539245564,70.3543,166.78,166.74,5.9952]
[1747539245761,70.3543,166.78,166.71,64.36]
[1747539245962,64.2,166.8,166.71,64.36]
[1747539246666,5.9942,166.78,166.74,5.9952]
[1747539246855,5.9942,166.78,166.71,64.36]
[1747539247472,5.9942,166.78,166.75,5.995]
[1747539247667,5.9937,166.79,166.71,64.36]
[1747539248267,5.9937,166.79,166.75,5.9949]
[1747539248567,5.9937,166.79,166.71,64.36]
[1747539248867,5.9941,166.78,166.71,64.36]
[1747539249467,5.9941,166.78,166.75,5.995]
[1747539249969,5.9941,166.78,166.74,5.9953]
[1747539250270,5.9941,166.78,166.71,64.36]
[1747539250671,5.9943,166.77,166.71,64.36]
[1747539250969,5.9943,166.77,166.72,5.47357616]
[1747539251871,5.9943,166.77,166.71,64.36]
[1747539252071,5.9941,166.78,166.71,64.36]
[1747539252373,5.9941,166.78,166.74,5.9951]
[1747539253468,5.9944,166.77,166.74,5.9951]
[1747539253670,5.9944,166.77,166.73,5.9956]
[1747539253971,64.2,166.8,166.73,5.9956]
[1747539255574,5.9945,166.77,166.73,5.9956]
[1747539256277,5.9945,166.77,166.74,5.9954]
[1747539256476,5.994,166.78,166.71,64.36]
[1747539256776,64.2,166.8,166.71,64.36]
[1747539256979,70.353,166.81,166.71,64.36]
[1747539257273,64.36,166.81,166.71,64.36]
[1747539257577,128.2,166.84,166.72,5.48220276]
[1747539257782,64.38,166.87,166.74,5.28300677]
[1747539258079,64.38,166.87,166.75,68.2386]
[1747539258275,70.371,166.87,166.75,68.2386]
[1747539258580,70.371,166.87,166.76,2.19432207]
[1747539258883,70.371,166.87,166.77,63.78]
[1747539259080,70.371,166.87,166.83,5.9919]
[1747539259675,5.9911,166.86,166.83,5.9919]
[1747539259873,64.38,166.87,166.82,5.9924]
[1747539260074,64.38,166.87,166.8,64.38]
[1747539260872,5.9912,166.86,166.83,5.9919]
[1747539261073,64.38,166.87,166.8,64.38]
[1747539261273,64.38,166.87,166.81,5.48220276]
[1747539261475,64.38,166.87,166.83,5.992]
[1747539262675,5.9915,166.86,166.83,5.992]
[1747539263178,64.38,166.87,166.82,5.9924]
[1747539263475,5.9912,166.86,166.8,64.38]
[1747539263684,64.38,166.87,166.8,64.38]
[1747539263878,64.38,166.87,166.83,5.992]
[1747539264682,5.9912,166.86,166.82,5.9924]
[1747539264883,64.38,166.87,166.8,64.38]
[1747539265479,5.9917,166.85,166.81,5.9928]
[1747539265679,64.38,166.87,166.8,64.38]
[1747539265881,5.9924,166.83,166.79,5.9935]
[1747539266677,5.9926,166.82,166.78,5.9939]
[1747539266878,63.6,166.84,166.79,5.50704265]
[1747539267580,63.6,166.84,166.81,5.9927]
[1747539268388,63.6,166.84,166.83,5.9922]
[1747539268689,64.38,166.87,166.83,5.9922]
[1747539268883,64.38,166.87,166.76,64.36]
[1747539269086,70.371,166.87,166.77,2.20227323]
[1747539269387,64.38,166.87,166.78,2.20227323]
[1747539269690,64.38,166.87,166.79,2.20227323]
[1747539269882,64.38,166.87,166.8,2.20227323]
[1747539270092,5.9911,166.86,166.82,5.9925]
[1747539270499,5.9911,166.86,166.8,5.50124147]
[1747539270698,70.3709,166.87,166.84,5.9916]
[1747539270899,64.38,166.87,166.81,2.2044592]
[1747539271091,64.38,166.87,166.8,5.50124147]
[1747539271596,5.9912,166.86,166.82,11.49374147]
[1747539272296,5.9912,166.86,166.83,5.9922]
[1747539272902,64.38,166.87,166.84,5.9916]
[1747539273200,644.82,166.9,166.8,63.54]
[1747539273400,644.82,166.9,166.81,4.18580944]
[1747539273596,644.82,166.9,166.82,4.23510944]
[1747539273795,5.9902,166.89,166.86,5.9909]
[1747539274497,132.9898,166.9,166.86,5.9909]
[1747539274806,127.0,166.9,166.86,5.9909]
[1747539274999,127.0,166.9,166.85,5.9913]
[1747539275405,127.0,166.9,166.82,2.0296]
[1747539275604,127.0,166.9,166.8,63.54]
[1747539275897,5.9913,166.86,166.82,5.9925]
[1747539276101,69.3913,166.86,166.82,5.9925]
[1747539278297,63.4,166.86,166.81,5.9928]
[1747539278800,5.9917,166.85,166.81,5.9928]
[1747539279907,5.9917,166.85,166.82,5.9925]
[1747539280709,5.9918,166.84,166.81,5.9928]
[1747539286107,5.9918,166.84,166.82,5.9925]
[1747539288510,5.9915,166.85,166.82,5.9925]
[1747539288699,63.4,166.86,166.8,63.54]
[1747539288903,63.54,166.9,166.81,5.51540265]
[1747539289210,126.46,166.9,166.81,5.51540265]
[1747539289503,5.9903,166.89,166.86,5.991]
[1747539289809,5.9903,166.89,166.81,68.41540265]
[1747539290009,132.4298,166.9,166.87,5.9907]
[1747539290210,126.44,166.9,166.81,68.41540265]
[1747539290614,5.9901,166.89,166.85,5.9911]
[1747539291812,5.9901,166.89,166.86,5.9909]
[1747539294616,132.3699,166.9,166.87,5.9907]
[1747539294817,126.38,166.9,166.81,62.9]
[1747539295314,5.9907,166.88,166.84,5.9916]
[1747539295511,126.38,166.9,166.81,62.9]
[1747539295713,126.38,166.9,166.85,5.51867163]
[1747539296613,126.38,166.9,166.83,5.9921]
[1747539297020,5.991,166.87,166.83,5.9921]
[1747539297218,126.38,166.9,166.84,5.9918]
[1747539297517,5.9906,166.88,166.84,5.9918]
[1747539298116,5.9909,166.87,166.84,5.9918]
[1747539298616,126.38,166.9,166.84,5.5203695]
[1747539300022,126.38,166.9,166.85,5.5203695]
[1747539300214,5.9911,166.86,166.85,5.5203695]
[1747539300422,125.02,166.86,166.78,5.58502097]
[1747539301619,125.02,166.86,166.77,62.54]
[1747539301821,87.12190412,166.92,166.78,67.72300677]
[1747539302126,5.9898,166.9,166.81,5.28300677]
[1747539302314,5.9898,166.9,166.82,125.0]
[1747539302510,5.9898,166.9,166.87,5.9907]
[1747539303030,87.12190412,166.92,166.88,5.99]
[1747539304320,124.98,166.94,166.83,11.43722097]
[1747539304521,62.54,166.94,166.83,11.43722097]
[1747539304723,68.5283,166.94,166.91,5.9892]
[1747539305024,5.9883,166.94,166.91,5.9892]
[1747539305517,5.9886,166.93,166.87,62.52]
[1747539305718,124.92,166.97,166.87,62.52]
[1747539305921,124.92,166.97,166.89,5.9899]
[1747539307824,5.9886,166.94,166.89,5.9899]
[1747539308821,5.9886,166.93,166.89,5.9899]
[1747539310330,5.9882,166.94,166.9,5.9897]
[1747539310726,124.92,166.97,166.87,62.52]
[1747539311128,5.9882,166.94,166.87,62.52]
[1747539311426,124.92,166.97,166.87,62.52]
[1747539311923,5.9886,166.94,166.9,5.9895]
[1747539312129,5.9886,166.94,166.87,62.52]
[1747539312432,5.9886,166.94,166.9,5.9894]
[1747539312833,5.9886,166.94,166.91,5.4773205]
[1747539313334,5.9886,166.93,166.91,5.4773205]
[1747539313630,124.92,166.97,166.91,5.4773205]
[1747539313829,5.9892,166.92,166.87,62.52]
[1747539314029,124.92,166.97,166.87,62.52]
[1747539314524,62.52,166.97,166.87,62.52]
[1747539314931,124.9,166.97,166.87,62.52]
[1747539315123,5.9879,166.95,166.88,5.47592843]
[1747539316030,5.9879,166.95,166.91,5.989]
[1747539316524,5.9876,166.96,166.89,5.47592843]
[1747539316727,5.9876,166.96,166.93,5.9883]
[1747539319331,62.52,166.97,166.9,3.8854]
[1747539319529,62.52,166.97,166.9,66.2654]
[1747539319831,5.9876,166.96,166.93,5.9884]
[1747539320630,5.9872,166.97,166.94,5.9882]
[1747539321740,5.28300677,167.03,166.91,62.5]
[1747539321939,62.5,167.01,166.92,1.8758]
[1747539322534,5.9865,166.99,166.92,1.8758]
[1747539322939,5.9865,166.99,166.96,5.9874]
[1747539327544,62.5,167.01,166.92,1.8758]
[1747539327745,517.68,167.06,166.92,1.8758]
[1747539327954,62.5,167.05,166.93,5.28300677]
[1747539328144,62.5,167.05,166.94,62.34]
[1747539328443,62.5,167.05,166.96,5.28300677]
[1747539328639,5.28300677,167.12,166.97,3.9246]
[1747539328846,5.9839,167.07,167.03,5.9848]
[1747539329549,5.984,167.06,167.02,5.9853]
[1747539329743,124.84,167.11,166.99,64.2216]
[1747539330050,5.9846,167.05,166.99,64.2216]
[1747539330250,5.9846,167.05,167.01,5.9857]
[1747539331250,5.9846,167.05,167.02,5.9853]
[1747539331745,5.984,167.06,167.02,5.9853]
[1747539332244,5.9837,167.07,166.99,64.2216]
[1747539332446,62.34,167.09,166.99,64.2216]
[1747539332846,5.9845,167.05,167.01,5.9857]
[1747539333047,5.9845,167.05,166.99,64.2216]
[1747539334458,5.9845,167.05,167.01,5.9854]
[1747539334656,62.34,167.09,166.99,64.2216]
[1747539334657,62.32,167.07,166.99,64.2216]
[1747539335158,62.32,167.07,166.99,62.34]
[1747539335354,62.32,167.07,166.97,3.9246]
[1747539335658,5.9861,167.0,166.97,9.9115]
[1747539337558,5.9859,167.01,166.98,5.9867]
[1747539339460,5.9861,167.0,166.97,9.9116]
[1747539339655,62.32,167.04,166.97,3.9246]
[1747539340860,5.986,167.01,166.97,9.9115]
[1747539341154,62.32,167.04,166.96,62.32]
[1747539341359,62.32,167.03,166.94,64.2849]
[1747539342062,5.9863,167.0,166.97,5.9871]
[1747539343561,5.9863,167.0,166.96,5.9874]
[1747539344162,5.9865,166.99,166.96,5.9874]
[1747539345957,5.9868,166.98,166.96,5.9874]
[1747539346458,5.9868,166.98,166.95,5.9878]
[1747539347969,5.9858,167.01,166.98,5.9867]
[1747539348358,5.9855,167.02,166.98,5.9867]
[1747539348660,5.9855,167.02,166.99,5.9864]
[1747539350159,62.32,167.03,166.99,5.9864]
[1747539350761,62.32,167.03,166.98,5.9867]
[1747539351873,5.9859,167.01,166.99,5.9864]
[1747539352170,62.32,167.03,166.99,5.9864]
[1747539353065,62.32,167.03,167.0,5.9858]
[1747539353364,68.305,167.04,167.0,5.9858]
[1747539353668,5.985,167.04,167.01,5.9855]
[1747539354570,5.985,167.04,167.0,5.9859]
[1747539355074,5.985,167.04,166.97,62.32]
[1747539355672,5.985,167.04,167.01,5.9856]
[1747539356374,5.9844,167.05,167.02,5.9853]
[1747539357070,5.9847,167.04,167.01,5.9856]
[1747539358876,5.985,167.03,167.01,5.9856]
[1747539359064,124.6,167.06,167.01,5.9856]
[1747539360273,5.9849,167.04,167.01,5.9856]
[1747539360665,124.6,167.06,167.01,5.9856]
[1747539360965,5.985,167.03,167.0,5.986]
[1747539361570,124.6,167.06,166.97,62.32]
[1747539362076,5.9847,167.04,167.02,5.9853]
[1747539362776,5.9847,167.04,167.01,5.9856]
[1747539364078,5.9847,167.04,167.02,11.46850745]
[1747539364275,5.985,167.03,167.02,5.48320745]